bitfinex/quotes_ETHUSD_20240618
["timestamp","ask_amount","ask_price","bid_price","bid_amount"]
[1718710419422,0.07326315,3413.0,3411.2,0.68508]
[1718710419617,0.07326315,3413.0,3411.2,1.859334]
[1718710420339,0.07326315,3413.0,3411.2,1.174254]
[1718710420851,0.07326315,3413.0,3410.8,3.0]
[1718710421157,0.07326315,3413.0,3410.9,1.174296]
[1718710421467,0.07326315,3413.0,3411.0,0.55]
[1718710422562,0.07326315,3413.0,3410.9,1.174296]
[1718710422728,0.07326315,3413.0,3410.9,0.7789996]
[1718710422729,6.12662069,3412.9,3410.9,0.7789996]
[1718710422922,0.07327244,3412.8,3410.5,3.0]
[1718710423148,3.6238,3412.6,3410.7,1.174407]
[1718710423335,2.20407652,3412.5,3410.7,1.174407]
[1718710423537,5.69179413,3412.4,3409.8,9.4868]
[1718710423745,2.20407668,3412.3,3409.9,2.13670723]
[1718710424056,2.20407697,3412.2,3409.8,2.0568]
[1718710424378,5.69179413,3412.1,3409.9,0.05863564]
[1718710424543,3.38058694,3412.0,3409.8,0.2938]
[1718710424858,3.38058694,3412.0,3409.8,3.2938]
[1718710424859,1.24979281,3412.0,3409.8,3.2938]
[1718710425468,0.07328198,3411.9,3410.0,4.854]
[1718710425623,0.07328198,3411.9,3410.1,4.33334334]
[1718710425959,0.07328198,3411.9,3410.1,1.33334334]
[1718710426162,0.07328198,3411.9,3410.0,3.0]
[1718710426338,0.07328198,3411.9,3409.9,1.468428]
[1718710426662,0.07329048,3412.0,3409.9,1.468428]
[1718710426832,0.43671953,3412.0,3410.0,0.7492228]
[1718710427022,3.561,3412.1,3410.1,2.78261312]
[1718710427227,0.07326982,3412.0,3410.2,3.55]
[1718710427460,0.36342698,3411.9,3410.3,0.355]
[1718710427767,0.36342698,3411.9,3410.2,0.55]
[1718710427768,0.07327619,3411.8,3410.2,0.55]
[1718710427964,0.07327619,3411.8,3410.0,0.55]
[1718710428125,0.07327619,3411.8,3410.1,0.9872428]
[1718710428323,0.36342698,3411.9,3410.2,0.60862326]
[1718710428533,0.07327679,3411.8,3410.2,3.55]
[1718710428741,3.561,3412.1,3410.3,0.75372428]
[1718710428742,0.07328288,3412.0,3410.3,0.75372428]
[1718710429045,0.07328288,3412.0,3410.4,0.55]
[1718710430534,0.07328288,3412.0,3410.3,0.75372428]
[1718710430728,0.07328288,3412.0,3409.9,4.468428]
[1718710430930,0.07328288,3412.0,3410.0,0.60862631]
[1718710431131,3.561,3412.1,3410.0,3.69962631]
[1718710431364,3.561,3412.1,3410.3,2.93227]
[1718710431525,3.561,3412.1,3410.4,6.57314]
[1718710431731,3.561,3412.1,3410.4,9.57314]
[1718710432437,0.0732709,3412.0,3410.4,3.55]
[1718710432637,0.36342709,3411.9,3410.5,3.355]
[1718710432868,0.07327814,3411.8,3410.5,0.355]
[1718710433170,0.0732841,3411.7,3410.2,3.0]
[1718710433354,0.0732841,3411.7,3410.3,1.26709913]
[1718710433566,3.4536,3411.6,3410.1,1.17099132]
[1718710433730,0.07329096,3411.5,3409.9,4.174628]
[1718710433930,0.07329096,3411.5,3409.5,7.43]
[1718710433931,3.4536,3411.4,3409.5,7.43]
[1718710434177,3.4536,3411.4,3409.3,12.12]
[1718710434178,0.42599061,3411.3,3409.6,4.955]
[1718710434360,0.42599061,3411.3,3409.4,3.0]
[1718710434361,0.07330109,3411.2,3409.4,3.0]
[1718710434682,0.07330109,3411.2,3408.8,10.9184]
[1718710434683,0.07330109,3411.2,3408.9,4.763]
[1718710434879,0.46126011,3411.2,3409.1,4.6963]
[1718710435166,0.46126011,3411.2,3409.2,3.35243844]
[1718710435369,3.4536,3411.4,3409.1,4.6963]
[1718710435370,0.07329806,3411.3,3409.3,1.763]
[1718710435569,0.07329806,3411.3,3409.3,4.854]
[1718710435882,3.0,3411.9,3409.4,0.4854]
[1718710435883,0.07329312,3411.2,3409.4,0.4854]
[1718710436073,0.52950765,3412.4,3409.0,1.468648]
[1718710436074,3.6339,3411.1,3409.0,1.468648]
[1718710436290,0.07330732,3411.0,3409.1,1.73513969]
[1718710436439,0.37072073,3410.9,3409.2,0.32037877]
[1718710436748,0.07330732,3410.8,3409.2,0.32037877]
[1718710436948,0.37072073,3410.9,3409.2,0.32037877]
[1718710436949,0.07330737,3410.7,3409.2,0.32037877]
[1718710437153,0.07330737,3410.7,3409.3,0.62303665]
[1718710437952,0.07330732,3410.8,3409.3,0.62303665]
[1718710438277,0.07330431,3410.7,3409.3,0.62303665]
[1718710438479,0.37072073,3410.9,3409.2,3.32037877]
[1718710438480,0.07330431,3410.8,3409.4,0.56785551]
[1718710438677,0.07330431,3410.7,3409.3,3.0]
[1718710438877,0.07330431,3410.7,3409.4,0.33203788]
[1718710439069,0.37072073,3410.9,3409.2,0.32037877]
[1718710439070,0.07331356,3410.6,3409.2,0.32037877]
[1718710439265,0.07331486,3410.6,3409.2,0.32037877]
[1718710440490,0.07330926,3410.7,3409.3,0.55]
[1718710440851,3.7083,3410.8,3409.4,0.05864358]
[1718710441052,3.7083,3410.8,3409.5,0.55]
[1718710441389,3.7083,3410.8,3409.3,0.75196268]
[1718710441390,0.07330067,3410.7,3409.3,0.75196268]
[1718710441768,0.07330067,3410.7,3408.9,3.0]
[1718710441967,0.07330067,3410.7,3408.9,4.174984]
[1718710443162,0.07330067,3410.7,3409.0,0.55]
[1718710443848,0.07330067,3410.7,3409.0,0.8438]
[1718710444955,0.07330067,3410.7,3408.9,4.174984]
[1718710445159,0.37816007,3410.6,3409.0,3.0]
[1718710445346,0.37816007,3410.6,3408.5,3.0]
[1718710445347,3.7813,3410.4,3408.5,3.0]
[1718710445544,3.7813,3410.2,3408.3,1.175256]
[1718710445868,3.7813,3410.0,3408.0,0.2938]
[1718710446205,3.5573,3409.8,3408.0,0.2938]
[1718710446353,0.43639906,3409.7,3408.0,0.2938]
[1718710447484,3.517,3409.6,3408.1,0.2938]
[1718710447653,0.07333868,3409.5,3408.1,0.2938]
[1718710450000,0.07333868,3409.5,3407.8,0.2938]
[1718710450364,0.07333868,3409.5,3408.2,0.2938]
[1718710450897,3.517,3409.6,3408.2,0.2938]
[1718710451394,3.0,3409.5,3408.2,0.2938]
[1718710451692,4.19455149,3409.4,3407.5,3.2938]
[1718710452001,6.54,3409.3,3407.6,0.05868115]
[1718710452200,0.07335143,3409.2,3407.5,3.2938]
[1718710452396,3.54,3409.1,3407.7,0.2938]
[1718710452594,0.07335148,3409.0,3407.7,0.2938]
[1718710452892,3.54,3408.9,3407.7,0.2938]
[1718710453122,3.07336351,3408.8,3407.7,0.2938]
[1718710453284,4.41949982,3408.7,3407.1,0.2938]
[1718710454673,3.091,3408.5,3407.1,3.0]
[1718710454978,0.68979982,3408.7,3406.5,3.0]
[1718710454979,3.5446,3408.3,3406.5,3.0]
[1718710455186,0.07336542,3408.2,3406.6,0.8605839]
[1718710455503,0.07336542,3408.2,3406.4,1.175867]
[1718710455666,3.716,3408.1,3406.1,2.812]
[1718710455871,0.07337314,3408.0,3406.2,0.2938]
[1718710456181,0.07337314,3408.0,3406.3,0.05869838]
[1718710456586,0.07337314,3408.0,3405.9,1.176043]
[1718710456776,0.41511697,3407.9,3405.9,2.200243]
[1718710456975,0.07337433,3407.8,3405.9,2.200243]
[1718710457193,3.7263,3407.6,3405.9,5.200243]
[1718710457403,3.7263,3407.6,3406.0,0.9924043]
[1718710457404,0.07337849,3407.5,3406.0,0.9924043]
[1718710457699,0.07337849,3407.5,3406.0,3.0]
[1718710457899,3.7263,3407.4,3405.9,1.0242]
[1718710458094,3.7263,3407.2,3405.5,1.17619]
[1718710458268,0.07339593,3407.1,3405.5,1.17619]
[1718710459177,3.5117,3407.0,3405.5,1.17619]
[1718710459384,3.5117,3407.0,3405.1,1.52114795]
[1718710459385,2.812,3406.4,3405.1,1.52114795]
[1718710459577,2.7105,3406.2,3405.1,1.52114795]
[1718710459781,2.7105,3406.0,3405.1,1.52114795]
[1718710459982,0.35181069,3405.9,3405.1,1.52114795]
[1718710460303,2.78391878,3405.8,3405.1,1.52114795]
[1718710460601,2.7105,3405.8,3405.2,0.05873464]
[1718710460769,2.7105,3405.8,3404.3,8.84043]
[1718710460969,3.5117,3406.8,3404.9,3.4525]
[1718710461167,3.5117,3406.8,3405.3,2.812]
[1718710461372,3.5117,3406.8,3405.4,0.0587092]
[1718710461670,3.5117,3406.8,3405.5,0.28707092]
[1718710461870,0.07338657,3406.7,3405.5,0.28707092]
[1718710462074,0.07338657,3406.7,3405.0,0.2938]
[1718710463104,0.07338657,3406.7,3404.2,1.42094]
[1718710463105,3.091,3406.2,3404.2,1.42094]
[1718710463272,3.57,3406.6,3403.3,3.0]
[1718710463273,5.903,3405.4,3403.3,3.0]
[1718710463600,0.07343796,3405.3,3402.6,1.176801]
[1718710463804,0.67108179,3405.2,3402.8,0.30785259]
[1718710464005,3.5383,3405.1,3402.8,0.30785259]
[1718710464206,6.164438,3405.0,3402.8,0.30785259]
[1718710464505,3.091,3404.5,3402.9,0.17784536]
[1718710464810,3.5383,3404.1,3402.6,1.176801]
[1718710465113,3.5383,3404.1,3402.7,0.05877095]
[1718710465114,0.07346369,3404.0,3402.7,0.05877095]
[1718710465314,0.07346369,3404.0,3402.6,1.176801]
[1718710465806,3.5383,3404.1,3402.7,0.05876075]
[1718710465974,3.5383,3404.1,3402.7,0.2938]
[1718710466370,3.5383,3404.1,3402.9,0.2938]
[1718710466571,3.662,3405.0,3403.0,0.35255141]
[1718710466816,4.03543173,3405.0,3403.1,1.10832614]
[1718710467131,4.03543173,3405.0,3403.2,0.8438]
[1718710467906,4.03543173,3405.0,3403.2,0.2938]
[1718710468074,3.40354317,3404.9,3403.3,0.05875973]
[1718710468274,3.40354317,3404.9,3402.4,0.2938]
[1718710468275,0.07344618,3404.8,3402.6,0.2938]
[1718710468609,0.07343824,3404.7,3403.0,0.2938]
[1718710468906,3.662,3405.0,3403.5,3.23194]
[1718710469114,7.43,3405.8,3403.7,1.763]
[1718710469286,3.0,3407.6,3403.6,6.3199144]
[1718710469287,7.43,3407.2,3404.2,1.763]
[1718710469485,3.626594,3407.1,3404.6,1.763]
[1718710469685,3.626594,3407.1,3404.7,0.55]
[1718710469888,3.626594,3407.1,3404.9,2.93693]
[1718710470196,3.626594,3407.1,3405.0,3.90251379]
[1718710470406,0.3626594,3407.0,3405.2,0.2938]
[1718710470718,0.07338676,3407.0,3405.4,0.2938]
[1718710470877,3.5532,3407.1,3405.4,0.2938]
[1718710471075,3.5532,3407.1,3405.5,0.60870622]
[1718710471277,3.5532,3407.1,3405.6,0.2938]
[1718710471533,3.5532,3407.1,3405.7,0.55]
[1718710471675,3.5532,3407.1,3405.8,0.05870194]
[1718710471880,3.5532,3407.1,3405.9,0.55]
[1718710472397,3.5532,3407.1,3406.0,0.05870194]
[1718710472712,0.07337744,3407.0,3405.7,1.65843]
[1718710472875,0.07337744,3407.0,3405.7,0.55]
[1718710473080,0.07337744,3407.0,3405.5,3.0]
[1718710473286,0.07337744,3407.0,3405.1,0.2938]
[1718710473520,0.07337744,3407.0,3404.6,3.0]
[1718710473521,3.81125774,3406.9,3404.6,3.0]
[1718710473723,0.07340308,3406.8,3404.2,4.854]
[1718710473906,0.07340313,3406.7,3404.3,3.0]
[1718710474076,0.73470344,3406.7,3404.4,1.672962]
[1718710475528,0.73470344,3406.7,3403.9,3.7247]
[1718710475529,0.73470344,3406.7,3404.0,3.2938]
[1718710475683,0.73470344,3406.7,3404.0,6.2315]
[1718710475882,3.762,3406.6,3404.0,3.2938]
[1718710476083,3.762,3406.6,3404.2,0.2938]
[1718710476084,0.0734077,3406.5,3404.2,0.2938]
[1718710476515,3.0734077,3406.5,3404.2,0.2938]
[1718710476811,3.0734077,3406.5,3404.3,0.8438]
[1718710477050,3.0734077,3406.5,3404.1,0.995631]
[1718710477051,3.762,3406.3,3404.4,0.55]
[1718710477322,3.762,3406.3,3404.2,1.4983331]
[1718710477323,3.07341447,3406.2,3404.2,1.4983331]
[1718710477614,3.07341447,3406.2,3403.5,7.43]
[1718710477615,3.4441,3406.0,3403.5,7.43]
[1718710477788,3.16442243,3405.9,3403.2,6.9786]
[1718710477982,7.12527388,3405.9,3403.3,0.2938]
[1718710478386,4.03427388,3405.9,3403.6,0.2938]
[1718710478608,4.03427388,3405.9,3403.8,0.2938]
[1718710478808,0.74783739,3405.8,3403.6,4.07890107]
[1718710479084,3.4487,3405.6,3403.6,4.07890107]
[1718710479288,3.4487,3405.6,3403.4,0.2938]
[1718710479289,0.07343084,3405.5,3403.4,0.2938]
[1718710479485,6.16443084,3405.5,3402.9,3.0]
[1718710479732,6.16443084,3405.5,3403.0,1.4564]
[1718710479733,0.96131308,3405.4,3403.0,1.4564]
[1718710479999,3.5536,3405.2,3403.0,1.4564]
[1718710480197,0.07343454,3405.1,3403.0,1.4564]
[1718710480520,3.07343454,3405.1,3402.9,0.2938]
[1718710481027,3.07343454,3405.1,3403.1,0.2938]
[1718710481317,0.07343454,3405.1,3403.1,0.2938]
[1718710481505,0.07343454,3405.1,3403.3,0.2938]
[1718710481721,0.07343454,3405.1,3403.4,0.55]
[1718710482812,0.07343454,3405.1,3402.9,0.2938]
[1718710483028,3.07343454,3405.1,3403.0,0.05875245]
[1718710483328,0.36270345,3405.0,3403.0,0.05875245]
[1718710483492,0.07343348,3404.9,3402.7,11.2812945]
[1718710483692,0.77240728,3404.9,3402.8,12.52410045]
[1718710483889,0.77240728,3404.9,3402.9,3.0]
[1718710484107,0.77240728,3404.9,3403.0,0.2938]
[1718710484317,0.41351107,3404.8,3403.1,2.13172205]
[1718710484495,0.07343352,3404.7,3403.1,2.13172205]
[1718710484887,0.07343352,3404.7,3403.1,8.07020205]
[1718710485183,0.6989738,3404.9,3403.2,3.2938]
[1718710485388,0.6989738,3404.9,3403.3,1.35697221]
[1718710485922,0.6989738,3404.9,3403.4,0.05874273]
[1718710486140,3.5536,3405.2,3403.5,0.8438]
[1718710486358,3.5536,3405.2,3404.0,4.70068]
[1718710486496,3.6411,3405.8,3404.1,3.48763]
[1718710486695,0.36411,3405.7,3404.2,4.127943]
[1718710486915,3.6411,3405.8,3404.3,0.55]
[1718710487125,3.6411,3405.8,3404.3,0.60872671]
[1718710487332,3.6411,3405.8,3404.4,0.2938]
[1718710487530,0.07340843,3405.7,3404.3,0.55]
[1718710487834,0.07340843,3405.7,3404.1,3.0]
[1718710488135,0.07340843,3405.7,3403.9,2.93774]
[1718710488136,0.07340843,3405.7,3404.3,0.2938]
[1718710488298,0.07340843,3405.7,3404.4,0.55]
[1718710488498,0.44485927,3405.7,3404.3,0.355]
[1718710488707,0.44485927,3405.7,3404.4,0.55]
[1718710488921,0.40859593,3405.6,3404.3,0.355]
[1718710489125,0.40859593,3405.6,3403.6,3.5064]
[1718710489126,0.073418,3405.5,3403.8,0.2938]
[1718710489434,0.073418,3405.5,3403.9,0.55]
[1718710489597,0.073418,3405.5,3403.9,0.93438]
[1718710489935,0.073418,3405.5,3403.5,0.2938]
[1718710491117,0.073418,3405.5,3403.5,3.23194]
[1718710491314,0.073418,3405.5,3403.6,3.9025383]
[1718710491639,3.6411,3405.8,3404.1,0.2938]
[1718710491640,0.07342288,3405.7,3404.1,0.2938]
[1718710491842,0.07342288,3405.7,3404.3,0.2938]
[1718710492000,0.07342288,3405.7,3404.5,0.2938]
[1718710492196,0.37145229,3405.6,3404.5,0.2938]
[1718710492399,0.07341386,3405.5,3404.5,0.2938]
[1718710493150,0.07341386,3405.5,3403.9,0.2938]
[1718710493319,0.07341386,3405.5,3403.9,0.45278608]
[1718710493526,0.07341386,3405.5,3403.6,0.8438]
[1718710494420,3.73,3405.4,3403.6,0.8438]
[1718710494642,0.07342625,3405.3,3403.4,3.0]
[1718710494958,0.38034263,3405.2,3403.5,1.18435891]
[1718710495112,0.07343389,3405.1,3403.5,1.18435891]
[1718710495647,0.07343389,3405.1,3403.0,0.2938]
[1718710495808,0.07343389,3405.1,3403.2,0.2938]
[1718710496317,0.07343389,3405.1,3403.4,0.2938]
[1718710496506,0.07343389,3405.1,3403.6,0.2938]
[1718710496706,0.07343389,3405.1,3403.7,0.18654358]
[1718710496707,0.49181154,3405.1,3403.7,0.18654358]
[1718710496908,0.49181154,3405.1,3403.6,0.2938]
[1718710497103,0.41837765,3405.1,3403.7,0.05874821]
[1718710497308,0.41837765,3405.1,3403.8,0.55]
[1718710497533,0.41837765,3405.1,3403.7,0.55]
[1718710497737,0.41837765,3405.1,3403.7,0.87938]
[1718710498066,0.41837765,3405.1,3403.8,0.05874469]
[1718710498229,0.41837765,3405.1,3403.5,0.2938]
[1718710498562,0.41837765,3405.1,3403.6,0.55]
[1718710499110,3.7646,3405.0,3403.5,0.2938]
[1718710499312,2.20852805,3404.9,3403.4,0.2938]
[1718710499510,0.07343513,3404.9,3403.5,0.8438]
[1718710499710,0.5973128,3404.8,3403.5,0.8438]
[1718710499930,0.07343514,3404.7,3403.5,0.2938]
[1718710500234,2.13539684,3404.6,3403.5,0.05875456]
[1718710500546,0.07343651,3404.5,3403.1,0.2938]
[1718710500745,0.07343651,3404.5,3403.2,2.55454558]
[1718710500939,3.7775,3404.6,3403.3,1.02181823]
[1718710501141,2.20882217,3404.5,3403.1,0.2938]
[1718710501339,2.73400782,3404.4,3403.0,7.43]
[1718710501532,2.73400782,3404.4,3402.5,13.3332338]
[1718710501533,3.7775,3404.2,3402.5,0.6066169]
[1718710501749,0.0734516,3404.1,3403.1,3.0]
[1718710501964,0.0734516,3404.1,3403.2,0.05876126]
[1718710502263,3.7775,3404.2,3402.9,0.2938]
[1718710502452,0.07344559,3404.1,3403.1,0.2938]
[1718710502653,0.07344559,3404.1,3402.8,2.821]
[1718710502654,0.45119559,3404.1,3402.9,3.0]
[1718710502875,0.07344559,3404.1,3402.9,3.0]
[1718710503391,0.07344559,3404.1,3403.0,0.2938]
[1718710503682,0.07344559,3404.1,3403.1,0.35256093]
[1718710503840,0.07345116,3404.1,3403.1,0.99344545]
[1718710504174,0.07345116,3404.1,3402.9,3.0]
[1718710505007,0.07345116,3404.1,3403.1,0.2938]
[1718710505570,3.7775,3404.2,3403.5,2.821]
[1718710505871,3.7775,3404.2,3403.6,0.55]
[1718710506396,3.6477,3405.1,3403.9,2.821]
[1718710506574,3.6477,3405.1,3404.0,4.21988907]
[1718710506959,3.6477,3405.1,3404.4,2.821]
[1718710507296,3.6477,3405.1,3404.5,3.55]
[1718710507670,0.07341723,3405.0,3404.2,0.2938]
[1718710507871,0.44552895,3405.0,3403.7,3.0]
[1718710508087,0.07341723,3405.0,3403.8,2.55400696]
[1718710508277,0.07341723,3405.0,3403.4,3.0]
[1718710508475,0.37211172,3404.9,3403.5,2.61298284]
[1718710508687,0.07341723,3405.0,3403.6,3.0]
[1718710508900,0.07341723,3405.0,3403.7,0.05874361]
[1718710509102,0.07341723,3405.0,3403.8,0.05874363]
[1718710509280,3.6477,3405.1,3403.9,0.0587437]
[1718710509609,0.07342488,3405.0,3404.0,0.55]
[1718710509819,0.07342488,3405.0,3403.4,3.6066169]
[1718710509820,0.44553737,3405.0,3403.4,3.0]
[1718710509993,0.44553737,3405.0,3403.3,3.0]
[1718710510312,0.40932374,3404.9,3403.3,3.41596169]
[1718710510475,0.40932374,3404.9,3403.3,3.70976169]
[1718710510476,0.07343836,3404.8,3403.3,3.70976169]
[1718710510680,0.07343965,3404.7,3403.4,0.72627617]
[1718710511012,3.3343,3404.6,3403.3,3.0]
[1718710511214,0.07344594,3404.5,3403.0,3.0]
[1718710511517,0.40687594,3404.5,3403.1,1.043]
[1718710511815,0.40687594,3404.5,3402.7,3.2938]
[1718710511982,3.3343,3404.2,3402.4,0.6066169]
[1718710512187,3.3343,3404.2,3402.3,0.90992535]
[1718710512188,3.3343,3403.9,3402.3,3.0]
[1718710512383,0.07346674,3403.8,3402.4,0.05877339]
[1718710512719,3.3343,3403.9,3401.7,0.2938]
[1718710512720,0.07346668,3403.7,3402.0,3.553]
[1718710513018,3.3343,3403.9,3402.1,5.49440023]
[1718710513019,0.07345212,3403.8,3402.1,5.49440023]
[1718710513190,0.07345212,3403.8,3402.2,2.55508023]
[1718710513391,0.07345212,3403.8,3402.4,0.2938]
[1718710513603,0.07345212,3403.8,3402.1,4.6805889]
[1718710513604,0.07345212,3403.8,3402.5,0.28488802]
[1718710513915,0.07345212,3403.8,3402.2,0.2938]
[1718710514120,0.07345212,3403.8,3402.4,0.2938]
[1718710514338,0.07345212,3403.8,3402.5,0.55]
[1718710515323,0.07345255,3403.7,3402.2,0.2938]
[1718710515908,3.22,3403.6,3402.1,4.134652]
[1718710516134,3.22,3403.6,3401.6,7.7238]
[1718710516135,0.07346705,3403.5,3401.6,7.7238]
[1718710516445,0.07346705,3403.5,3401.1,1.2132338]
[1718710516446,3.22,3403.4,3401.1,0.6066169]
[1718710516764,3.29347899,3403.3,3401.1,1.17754]
[1718710516924,0.07347899,3403.2,3401.2,2.84958501]
[1718710517275,0.07347899,3403.2,3401.2,0.2938]
[1718710517542,0.36228257,3403.1,3401.3,0.20779569]
[1718710517744,0.07347906,3403.0,3401.2,0.2938]
[1718710518404,0.07347906,3403.0,3400.7,4.46168834]
[1718710518405,3.2683,3402.7,3400.7,0.46076299]
[1718710518603,3.97772599,3402.6,3400.7,0.46076299]
[1718710518816,3.97772599,3402.6,3400.8,0.0587968]
[1718710518817,3.34179599,3402.6,3400.8,0.0587968]
[1718710519108,3.34179599,3402.6,3400.6,2.94062]
[1718710519307,3.34179599,3402.6,3400.4,11.34782]
[1718710519308,3.1523,3402.4,3400.7,1.48764423]
[1718710519506,0.07349896,3402.3,3400.5,0.2938]
[1718710519724,0.07349304,3402.2,3400.6,1.37508878]
[1718710519927,3.1523,3402.4,3401.2,0.2938]
[1718710520100,1.41266045,3403.7,3401.1,2.9402]
[1718710520101,3.1523,3403.7,3401.4,0.2938]
[1718710520305,0.07346892,3403.6,3401.4,0.2938]
[1718710520506,3.1523,3403.5,3401.4,0.2938]
[1718710520701,3.1523,3403.5,3401.6,3.23359]
[1718710520702,0.39605125,3403.4,3401.6,3.23359]
[1718710520914,0.39605125,3403.4,3401.5,0.05877949]
[1718710520915,0.39605125,3403.4,3401.7,0.35257494]
[1718710521120,0.39605125,3403.4,3401.8,0.55]
[1718710521451,0.07347436,3403.4,3401.9,0.05877325]
[1718710521655,3.1523,3403.5,3402.0,0.55]
[1718710521942,3.1523,3403.5,3402.1,2.93935]
[1718710522238,3.1523,3403.5,3402.0,3.55]
[1718710522239,3.1523,3403.5,3402.3,0.2938]
[1718710522656,3.1523,3403.5,3402.4,0.55]
[1718710522813,3.1523,3403.5,3402.4,0.8438]
[1718710523755,0.0734547,3403.4,3402.3,3.0]
[1718710524053,0.3886847,3403.4,3402.1,3.0]
[1718710524251,0.3886847,3403.4,3401.5,0.2938]
[1718710525319,0.3886847,3403.4,3401.6,0.2938]
[1718710525513,0.35409847,3403.3,3401.6,0.2938]
[1718710525711,3.091,3403.1,3401.1,4.1596169]
[1718710525912,3.091,3403.1,3401.2,0.05879095]
[1718710525913,3.4036,3402.9,3401.2,0.05879095]
[1718710526242,0.07348868,3402.8,3401.2,0.05879095]
[1718710526419,3.4036,3402.9,3401.0,0.2938]
[1718710526420,0.07348298,3402.7,3401.0,0.2938]
[1718710526754,0.07348298,3402.7,3401.2,0.2938]
[1718710527048,0.07348298,3402.7,3401.3,0.35258287]
[1718710527547,0.07347685,3402.8,3401.5,0.2938]
[1718710527725,0.07347685,3402.8,3401.6,0.608781]
[1718710527921,3.4036,3402.9,3401.6,0.608781]
[1718710528121,0.07347594,3402.8,3401.6,0.902581]
[1718710528431,3.4036,3402.9,3401.6,0.8438]
[1718710528637,0.07347073,3402.8,3401.6,0.55]
[1718710528843,0.07347073,3402.8,3401.3,0.8438]
[1718710529210,3.2879,3402.7,3401.2,3.0]
[1718710529418,0.07349088,3402.6,3401.0,4.67498594]
[1718710529617,0.07349088,3402.6,3401.1,3.05878864]
[1718710529812,0.07349088,3402.6,3401.2,0.2938]
[1718710530051,0.3743134,3402.5,3401.3,0.05878872]
[1718710530251,0.07348592,3402.4,3401.3,0.05878872]
[1718710530609,0.07348592,3402.4,3401.4,0.05878873]
[1718710530850,3.2879,3402.3,3400.8,3.0]
[1718710531060,3.73496849,3402.2,3400.8,3.0]
[1718710531411,3.73496849,3402.2,3400.2,3.0]
[1718710531833,3.73496849,3402.2,3400.3,0.2938]
[1718710532957,3.73496849,3402.2,3400.1,1.48594521]
[1718710532958,3.73496849,3402.2,3400.1,0.30802821]
[1718710533115,3.3216,3402.0,3400.0,0.14225176]
[1718710533311,6.4126,3401.8,3400.0,0.14225176]
[1718710533512,0.07351825,3401.7,3400.1,0.0588146]
[1718710534010,0.07350015,3401.6,3400.0,0.14225176]
[1718710534241,0.07350234,3401.7,3400.0,0.14225176]
[1718710534517,0.41301257,3401.7,3400.0,0.14225176]
[1718710534715,3.3216,3401.8,3400.2,2.94098]
[1718710534922,3.3216,3401.8,3400.4,0.2938]
[1718710535171,3.3216,3401.8,3400.5,0.90259609]
[1718710535353,3.3216,3401.8,3400.5,3.8438]
[1718710535651,3.3216,3401.8,3400.6,3.79817371]
[1718710535836,3.3216,3401.8,3400.7,0.55]
[1718710537153,3.3546,3403.1,3400.8,0.05879394]
[1718710537314,3.3546,3403.1,3401.1,2.9402]
[1718710537315,0.07348031,3403.0,3401.1,2.9402]
[1718710537517,3.3546,3403.1,3401.4,3.23376]
[1718710537719,0.0734772,3403.0,3401.6,0.2938]
[1718710537928,0.0734772,3403.0,3401.7,0.55]
[1718710538140,0.0734772,3403.0,3401.7,0.8438]
[1718710539443,0.0734772,3403.0,3401.8,0.35257803]
[1718710539625,0.0734772,3403.0,3401.9,0.55]
[1718710540027,1.41354505,3404.2,3401.9,0.55]
[1718710540028,3.2693,3403.7,3402.0,0.44315263]
[1718710540343,0.07346372,3403.6,3402.1,0.55]
[1718710540535,0.07346372,3403.6,3402.2,0.918676]
[1718710540862,0.07346372,3403.6,3402.3,0.55]
[1718710541226,4.50454505,3404.7,3402.0,0.2938]
[1718710541227,3.4388,3403.4,3402.0,0.2938]
[1718710541426,3.091,3402.9,3400.2,0.6066169]
[1718710541623,3.4388,3403.0,3400.3,0.1658794]
[1718710541624,3.091,3402.7,3400.3,0.1658794]
[1718710541857,0.07350018,3402.6,3400.3,0.1658794]
[1718710542063,3.3047,3402.5,3400.1,0.31447171]
[1718710542226,0.07350022,3402.4,3400.1,0.2938]
[1718710542443,0.71307022,3402.4,3400.1,0.2938]
[1718710543984,0.71307022,3402.4,3400.3,2.0568]
[1718710544190,0.71307022,3402.4,3400.5,0.2938]
[1718710544505,0.71307022,3402.4,3400.6,0.05879297]
[1718710544650,0.71307022,3402.4,3400.4,2.94082]
[1718710544651,0.07350022,3402.4,3400.5,3.01128302]
[1718710545003,0.07350022,3402.4,3400.6,0.55]
[1718710545301,0.33782002,3402.3,3400.6,3.55]
[1718710545596,0.07349189,3402.2,3400.7,3.0]
[1718710545799,0.07349189,3402.2,3400.8,0.55]
[1718710545963,0.44509308,3402.2,3400.7,0.38438]
[1718710546168,0.44509308,3402.2,3400.8,0.55]
[1718710546369,0.44509308,3402.2,3400.6,0.55]
[1718710546564,0.44509308,3402.2,3400.4,0.55]
[1718710546898,0.44509308,3402.2,3400.2,3.0]
[1718710546899,0.44509308,3402.2,3400.3,0.55]
[1718710547600,0.44509308,3402.2,3400.0,1.90525176]
[1718710547601,6.55019767,3402.1,3400.0,0.14225176]
[1718710547814,4.87274272,3402.1,3400.0,0.14225176]
[1718710548108,4.87274272,3402.1,3400.1,0.05880498]
[1718710548109,3.45919767,3402.1,3400.1,0.05880498]
[1718710548397,0.53815153,3402.0,3400.0,0.43605176]
[1718710548603,0.07350498,3401.9,3400.0,0.43605176]
[1718710549175,0.07350498,3401.9,3400.1,0.55]
[1718710549568,0.07350498,3401.9,3400.2,0.05880633]
[1718710549892,0.07350498,3401.9,3400.3,0.55]
[1718710550104,0.07350498,3401.9,3400.4,0.05879985]
[1718710550294,0.07350498,3401.9,3400.5,0.55]
[1718710550508,0.07350498,3401.9,3400.6,0.05880052]
[1718710550676,0.07350498,3401.9,3400.7,0.55]
[1718710551009,0.07350036,3401.8,3400.7,0.55]
[1718710551206,0.07350036,3401.8,3400.4,0.55]
[1718710551894,0.07350036,3401.8,3400.5,0.05880014]
[1718710552099,0.07350036,3401.8,3400.6,0.55]
[1718710552406,0.07350036,3401.8,3400.7,0.05880007]
[1718710552625,0.07350036,3401.8,3400.8,0.6087999]